bitfinex/quotes_ETHUSD_20220115
["timestamp","ask_amount","ask_price","bid_price","bid_amount"]
[1642215619640,1.9602519,3318.9,3318.7,1.29852419]
[1642215620646,2.9602519,3318.9,3318.7,1.29852419]
[1642215621085,1.9602519,3318.9,3318.7,1.29852419]
[1642215621286,1.0,3318.8,3318.7,1.29852419]
[1642215621486,1.9602519,3318.9,3318.7,1.29852419]
[1642215623587,1.9602519,3318.9,3318.7,4.29852419]
[1642215626037,2.9602519,3318.9,3318.7,4.29852419]
[1642215626434,1.9602519,3318.9,3318.7,4.29852419]
[1642215626635,1.6602519,3318.9,3318.7,4.29852419]
[1642215627533,1.80911505,3318.9,3318.7,4.29852419]
[1642215628784,1.50911505,3318.9,3318.7,4.29852419]
[1642215630381,1.50911505,3318.9,3318.8,2.57797908]
[1642215630782,1.33001319,3319.3,3319.2,1.3819166]
[1642215630982,1.93001319,3319.3,3319.2,1.3819166]
[1642215631289,0.93001319,3319.3,3319.2,1.3819166]
[1642215631480,1.93001319,3319.3,3319.2,1.3819166]
[1642215631682,0.93001319,3319.3,3319.2,1.3819166]
[1642215633034,0.33001319,3319.3,3319.2,1.3819166]
[1642215634237,1.72558019,3319.6,3319.2,1.3819166]
[1642215634439,0.72558019,3319.6,3319.2,1.3819166]
[1642215634637,0.00397896,3319.5,3319.2,1.3819166]
[1642215635039,0.00341054,3319.4,3319.2,1.3819166]
[1642215635538,0.00284212,3319.3,3319.2,1.3819166]
[1642215638087,0.32842231,3319.6,3319.2,1.3819166]
[1642215638487,0.00113684,3319.5,3319.2,1.3819166]
[1642215638889,0.39643282,3319.6,3319.2,1.3819166]
[1642215638890,0.39813809,3319.6,3319.2,1.3819166]
[1642215639734,0.34813809,3319.6,3319.2,1.3819166]
[1642215639930,0.00170527,3319.6,3319.2,1.3819166]
[1642215640130,0.38313809,3319.6,3319.2,1.3819166]
[1642215644983,0.33313809,3319.6,3319.2,1.3819166]
[1642215645185,1.50875075,3319.7,3319.3,0.00170527]
[1642215645385,0.3669444,3319.6,3319.3,0.00170527]
[1642215646791,1.50875075,3319.7,3319.3,0.00170527]
[1642215646988,0.3609444,3319.6,3319.3,0.00170527]
[1642215650842,1.50875075,3319.7,3319.3,0.00170527]
[1642215653093,0.30879995,3320.0,3319.3,0.00170527]
[1642215653297,2.52645348,3319.9,3319.3,2.57922666]
[1642215653496,0.00170527,3319.9,3319.3,2.57922666]
[1642215653692,0.00170527,3319.9,3319.4,0.00113685]
[1642215654758,1.50856867,3320.1,3319.8,1.34622612]
[1642215655139,1.50856867,3320.1,3319.8,1.24622612]
[1642215658989,0.87264239,3320.0,3319.8,1.24622612]
[1642215659795,1.50856867,3320.1,3319.8,1.24622612]
[1642215659994,0.85035901,3319.9,3319.8,1.24622612]
[1642215661393,1.50856867,3320.1,3319.8,1.24622612]
[1642215661594,0.82928292,3319.9,3319.8,1.24622612]
[1642215662539,0.82928292,3319.9,3319.8,1.18555512]
[1642215663547,1.50856867,3320.1,3319.8,1.18555512]
[1642215663733,0.47451684,3319.9,3319.8,1.18555512]
[1642215664437,1.50856867,3320.1,3319.8,1.18555512]
[1642215664837,1.50856867,3320.1,3319.8,3.65079883]
[1642215665042,1.7702,3320.9,3319.8,3.65079883]
[1642215665043,0.045463,3320.9,3319.8,3.6636469]
[1642215665238,3.1334,3321.1,3319.9,6.7]
[1642215665538,0.00284212,3320.4,3320.0,2.67486929]
[1642215665997,0.00227369,3320.3,3320.0,2.67486929]
[1642215666198,0.00227369,3320.3,3320.0,5.25156984]
[1642215666396,0.00170527,3320.2,3320.0,5.25156984]
[1642215666596,0.00170527,3320.2,3320.1,6.29312983]
[1642215666796,1.58264314,3321.1,3320.6,1.50282399]
[1642215666996,1.58264314,3321.1,3320.7,1.42352973]
[1642215667197,0.00625266,3321.0,3320.7,1.42352973]
[1642215667599,0.00568423,3320.9,3320.7,1.42352973]
[1642215667996,0.00511581,3320.8,3320.7,1.42352973]
[1642215674387,0.00511581,3320.8,3320.7,4.42352973]
[1642215677840,0.00511581,3320.8,3320.7,5.53751567]
[1642215678742,0.00511581,3320.8,3320.7,4.42352973]
[1642215682204,0.48257881,3320.8,3320.7,3.0]
[1642215682390,0.49538474,3320.8,3320.7,3.0]
[1642215682590,3.15500145,3320.8,3320.7,3.0]
[1642215682792,6.60500145,3320.8,3320.7,3.0]
[1642215682992,7.60500145,3320.8,3320.7,3.0]
[1642215683296,4.15500145,3320.8,3320.7,3.0]
[1642215683498,4.14219552,3320.8,3320.7,3.0]
[1642215684195,0.43711581,3320.8,3320.7,1.49170437]
[1642215684839,0.43711581,3320.8,3320.7,1.39389078]
[1642215687241,0.43711581,3320.8,3320.6,1.262735]
[1642215687649,0.00454739,3320.7,3320.6,1.262735]
[1642215688590,0.00454739,3320.7,3320.6,2.66929891]
[1642215688791,0.00454739,3320.7,3320.6,1.262735]
[1642215691192,0.00454739,3320.7,3320.6,3.83936814]
[1642215691590,0.00454739,3320.7,3320.6,1.262735]
[1642215692840,0.00454739,3320.7,3320.6,3.83936656]
[1642215693543,0.00454739,3320.7,3320.6,1.262735]
[1642215695545,0.00454739,3320.7,3320.6,4.262735]
[1642215696699,0.00454739,3320.7,3320.6,6.83940779]
[1642215700042,0.00454739,3320.7,3320.6,4.262735]
[1642215700244,0.43654739,3320.7,3320.6,3.0]
[1642215700442,6.59620727,3320.7,3320.6,3.0]
[1642215700641,7.89620727,3320.7,3320.6,3.0]
[1642215701643,8.64933727,3320.7,3320.6,3.0]
[1642215701841,5.14933727,3320.7,3320.6,3.0]
[1642215702242,6.6576329,3320.7,3320.6,3.0]
[1642215702443,9.41752164,3320.7,3320.6,3.0]
[1642215705394,13.3576329,3320.7,3320.6,0.14540218]
[1642215705597,6.7,3320.6,3319.5,9.2683]
[1642215705796,0.045463,3319.7,3319.5,9.2683]
[1642215705993,0.045463,3319.7,3319.6,0.00170527]
[1642215706599,0.045463,3319.7,3319.6,4.06486918]
[1642215707741,0.798853,3319.7,3319.6,4.06486918]
[1642215708143,1.12608209,3319.7,3319.6,4.06486918]
[1642215708940,1.12608209,3319.7,3319.6,1.48782256]
[1642215709742,1.08061909,3319.7,3319.6,1.48782256]
[1642215713294,8.60808209,3319.7,3319.6,0.00170527]
[1642215713494,8.60808209,3319.7,3318.8,3.86556994]
[1642215713495,7.0,3319.6,3318.8,3.86556994]
[1642215713695,0.045463,3318.9,3318.8,3.86556994]
[1642215714094,0.045463,3318.9,3318.8,3.87011733]
[1642215714298,0.045463,3318.9,3318.8,0.00454739]
[1642215714502,0.345463,3318.9,3318.8,1.54323037]
[1642215714740,0.777463,3318.9,3318.7,0.00511581]
[1642215714943,1.48561,3318.9,3318.8,3.0]
[1642215715144,2.48561,3318.9,3318.8,3.0]
[1642215715343,5.447873,3318.9,3318.8,3.0]
[1642215715544,5.449473,3318.9,3318.8,3.0]
[1642215715744,2.531073,3318.9,3318.8,3.0]
[1642215715942,4.89213221,3318.9,3318.8,3.0]
[1642215716642,4.89213221,3318.9,3318.8,1.49070273]
[1642215717043,7.47809208,3318.9,3318.8,1.49070273]
[1642215717545,4.5,3318.8,3318.7,1.39745359]
[1642215717744,7.53787277,3318.8,3318.7,1.39745359]
[1642215718144,3.03787277,3318.8,3318.7,1.39745359]
[1642215718345,0.11182722,3318.5,3317.7,7.23370886]
[1642215718591,0.54382722,3318.5,3318.0,1.43817743]
[1642215718797,0.54382722,3318.5,3318.0,1.4421564]
[1642215719090,0.432,3318.5,3318.0,1.4421564]
[1642215719291,0.432,3318.5,3318.0,2.97346939]
[1642215720893,0.432,3318.5,3318.0,1.4421564]
[1642215722547,0.432,3318.5,3318.0,2.97346939]
[1642215724144,0.477463,3318.5,3318.0,2.97346939]
[1642215725344,0.477463,3318.5,3318.0,5.97346939]
[1642215725546,0.432,3318.5,3318.0,5.97346939]
[1642215725998,0.432,3318.5,3318.0,4.4421564]
[1642215727193,0.045463,3318.8,3318.0,5.97346939]
[1642215727394,1.045463,3318.8,3318.0,5.97346939]
[1642215727990,0.045463,3318.8,3318.0,5.97346939]
[1642215728192,0.045463,3318.8,3318.1,1.53131299]
[1642215728492,0.045463,3318.8,3318.2,0.00284212]
[1642215728694,0.045463,3318.8,3318.7,1.30253348]
[1642215729092,0.045463,3318.8,3318.2,0.00284212]
[1642215729292,0.045463,3318.6,3318.2,0.00284212]
[1642215729493,0.045463,3318.5,3318.2,0.00284212]
[1642215730442,0.045463,3318.3,3318.2,0.00284212]
[1642215730640,0.75365,3318.4,3318.2,1.14389492]
[1642215730841,1.05365,3318.4,3318.2,1.14389492]
[1642215731041,1.05365,3318.4,3318.3,0.0022737]
[1642215731642,1.05365,3318.4,3318.3,2.58005932]
[1642215732244,0.3,3318.4,3318.3,2.58005932]
[1642215732643,0.645463,3318.5,3318.3,2.58005932]
[1642215733046,0.045463,3318.5,3318.4,0.00170527]
[1642215734795,4.06093406,3318.5,3318.4,0.00170527]
[1642215735196,5.06093406,3318.5,3318.4,0.00170527]
[1642215735396,5.49293406,3318.5,3318.4,0.00170527]
[1642215735994,5.4765458,3318.5,3318.2,0.00284212]
[1642215736197,1.7537217,3318.4,3318.2,0.00284212]
[1642215736395,0.045463,3318.3,3318.2,0.00284212]
[1642215737651,0.799193,3318.3,3318.2,0.00284212]
[1642215738048,0.799193,3318.3,3318.1,0.00341054]
[1642215738451,0.045463,3318.2,3318.1,0.00341054]
[1642215738850,0.045463,3318.2,3318.1,1.12106806]
[1642215743797,2.54291736,3318.2,3318.1,1.12106806]
[1642215743996,0.045463,3318.2,3318.1,1.12106806]
[1642215745044,0.045463,3318.2,3318.1,6.01482947]
[1642215745846,0.045463,3318.2,3318.1,3.69911722]
[1642215746046,0.477463,3318.2,3318.1,3.69911722]
[1642215747544,0.477463,3318.2,3318.1,2.5814597]
[1642215749192,2.89182444,3318.2,3318.1,2.5814597]
[1642215750896,0.477463,3318.2,3318.1,2.5814597]
[1642215752240,2.96419489,3318.2,3318.1,2.5814597]
[1642215752441,4.26419489,3318.2,3318.1,2.5814597]
[1642215753042,4.26419489,3318.2,3318.1,4.88696185]
[1642215754149,1.777463,3318.2,3318.1,4.88696185]
[1642215755747,4.24126117,3318.2,3318.1,4.88696185]
[1642215756011,6.75,3318.1,3318.0,3.0]
[1642215756195,11.45605393,3318.1,3318.0,3.0]
[1642215756596,7.4539448,3318.0,3317.6,7.92776697]
[1642215756799,8.90224747,3317.9,3317.8,3.86707374]
[1642215757096,6.75,3317.8,3317.6,3.08386697]
[1642215757295,0.477463,3317.7,3317.6,3.08386697]
[1642215757501,0.432,3317.7,3317.6,3.08386697]
[1642215757697,0.00113685,3317.9,3317.4,3.08386697]
[1642215758097,0.00113685,3317.9,3317.5,0.00113684]
[1642215758296,0.00113685,3317.9,3317.5,1.1842451]
[1642215758502,1.099263,3317.8,3317.5,3.08500381]
[1642215758700,0.045463,3317.7,3317.5,3.08500381]
[1642215758897,1.399263,3317.8,3317.5,3.08500381]
[1642215759747,0.645463,3317.8,3317.5,1.1475751]
[1642215760043,0.345463,3317.8,3317.5,1.1475751]
[1642215760943,0.68952068,3317.8,3317.5,1.1475751]
[1642215761945,0.68952068,3317.8,3317.5,0.00113684]
[1642215762345,0.75383,3317.7,3317.3,0.00227369]
[1642215762645,0.799293,3317.7,3317.3,0.00227369]
[1642215763603,0.045463,3317.7,3317.5,1.26381191]
[1642215763799,0.34405768,3317.8,3317.5,1.26381191]
[1642215763800,0.38952068,3317.8,3317.5,1.26381191]
[1642215765294,0.045463,3317.8,3317.5,1.26381191]
[1642215767247,0.00113685,3317.9,3317.5,1.26381191]
[1642215767852,0.00113685,3317.9,3317.8,8.1177154]
[1642215768046,0.00113685,3317.9,3317.8,11.12576124]
[1642215769549,0.045463,3319.0,3317.9,6.75445446]
[1642215769749,1.55444142,3319.2,3318.8,0.01218304]
[1642215769947,1.50897842,3319.2,3318.8,1.10988304]
[1642215770347,1.50897842,3319.2,3318.9,1.23132714]
[1642215770549,1.50897842,3319.2,3318.8,0.01218304]
[1642215770748,1.50897842,3319.2,3318.2,2.71372308]
[1642215771003,0.045463,3319.1,3318.2,2.71372308]
[1642215771392,0.00625266,3319.0,3318.2,2.71372308]
[1642215771597,0.05171566,3319.0,3318.2,2.71372308]
[1642215771893,0.00568423,3318.9,3318.8,1.51789795]
[1642215773694,0.00568423,3318.9,3318.6,7.81477585]
[1642215774099,0.00511581,3318.8,3318.6,7.81477585]
[1642215774294,0.00511581,3318.8,3318.7,5.65840302]
[1642215774496,0.045463,3319.2,3318.7,5.65840302]
[1642215774751,0.045463,3319.2,3318.7,2.50840302]
[1642215774953,0.00682108,3319.1,3318.7,2.50840302]
[1642215775350,0.00625266,3319.0,3318.7,2.50840302]
[1642215775752,0.00568423,3318.9,3318.7,2.50840302]
[1642215776152,0.00511581,3318.8,3318.7,3.68573808]
[1642215777354,0.00511581,3318.8,3318.7,6.68573808]
[1642215777755,0.00511581,3318.8,3318.7,9.26324804]
[1642215780094,0.00511581,3318.8,3318.7,9.21324804]
[1642215780296,0.00511581,3318.8,3318.7,9.30807379]
[1642215785747,0.00511581,3318.8,3318.7,9.20807379]
[1642215789746,0.00511581,3318.8,3318.7,9.50807379]
[1642215789946,0.045463,3320.0,3318.8,24.4]
[1642215790148,1.50856867,3320.1,3318.9,3.6445932]
[1642215790448,0.00682108,3320.0,3319.0,1.4566]
[1642215790646,0.00682108,3320.0,3319.3,1.54013765]
[1642215790851,0.00625266,3319.9,3319.4,2.96297161]
[1642215791048,0.00625266,3319.9,3319.1,3.13708973]
[1642215791248,0.00568424,3319.8,3319.1,3.13708973]
[1642215791447,0.00568424,3319.8,3319.1,6.71924106]
[1642215791647,0.05057881,3319.7,3319.1,6.71924106]
[1642215792050,0.00454739,3319.6,3319.1,6.71405776]
[1642215792448,0.00397896,3319.5,3319.2,2.57750996]
[1642215792849,0.00341054,3319.4,3319.3,9.32769471]
[1642215793248,0.00341054,3319.4,3319.3,13.60609471]
[1642215793895,0.00341054,3319.4,3319.3,6.85609471]
[1642215794094,0.00341054,3319.4,3319.3,9.43360467]
[1642215794495,0.04887354,3319.4,3319.3,6.85590996]
[1642215794700,0.00341054,3319.4,3319.3,6.85590996]
[1642215794896,0.00341054,3319.4,3319.3,9.41753524]
[1642215797445,0.00341054,3319.4,3319.3,6.85590996]
[1642215799247,0.00341054,3319.4,3319.3,9.48507374]
[1642215799447,0.00341054,3319.4,3319.3,6.85590996]
[1642215799756,0.04887354,3319.4,3319.3,6.85590996]
[1642215800550,0.00341054,3319.4,3319.3,6.85590996]
[1642215802496,0.00341054,3319.4,3319.3,8.20039505]
[1642215806444,0.00341054,3319.4,3319.3,10.79042166]
[1642215813142,0.00341054,3319.4,3319.3,28.44042166]
[1642215813547,0.00341054,3319.4,3319.3,10.79042166]
[1642215814145,0.00341054,3319.4,3319.3,14.65750206]
[1642215814747,0.00341054,3319.4,3319.3,32.30750206]
[1642215814945,0.00341054,3319.4,3319.3,28.44042166]
[1642215815748,0.00341054,3319.4,3319.3,14.65750206]
[1642215816596,0.00341054,3319.4,3319.3,10.79042166]
[1642215818799,0.00341054,3319.4,3319.3,28.44042166]
[1642215819600,0.00341054,3319.4,3319.3,32.30750206]
[1642215819845,0.00341054,3319.4,3319.3,14.65750206]
[1642215821249,0.00341054,3319.4,3319.3,10.74042166]
[1642215823155,0.045463,3319.8,3319.3,10.74042166]
[1642215823354,0.045463,3319.8,3319.7,4.3283447]
[1642215824197,0.045463,3319.8,3319.7,1.2283447]
[1642215824398,0.045463,3319.9,3319.7,1.2283447]
[1642215824599,0.045463,3320.0,3319.8,1.10765663]
[1642215825000,0.045463,3320.0,3319.8,3.68516659]
[1642215825401,0.045463,3320.0,3319.8,1.10765663]
[1642215827102,0.045463,3320.0,3319.9,2.57750996]
[1642215827550,0.05228408,3320.0,3319.9,2.57750996]
[1642215828352,0.00682108,3320.0,3319.9,2.57750996]
[1642215838522,0.00682108,3320.0,3319.8,4.10765663]
[1642215838523,7.35,3319.9,3319.8,1.18952532]
[1642215838702,6.77985815,3319.8,3319.4,3.8670804]
[1642215838906,7.795463,3319.5,3319.4,3.8670804]
[1642215839099,3.077463,3319.5,3319.4,3.8670804]
[1642215839299,3.08144196,3319.5,3318.7,1.62913567]
[1642215839498,1.0,3319.4,3319.0,1.47160817]
[1642215839698,0.045463,3319.1,3319.0,1.47160817]
[1642215840097,0.04716827,3319.1,3319.0,1.47160817]
[1642215840700,0.00170527,3319.1,3319.0,1.47160817]
[1642215841097,0.04716827,3319.1,3319.0,1.47160817]
[1642215841504,0.04716827,3319.1,3319.0,2.77403071]
[1642215844851,0.00170527,3319.1,3319.0,2.77403071]
[1642215846103,0.04716827,3319.1,3319.0,1.47160817]
[1642215846506,0.00170527,3319.1,3319.0,1.47160817]
[1642215847903,0.00170527,3319.1,3319.0,4.87160817]
[1642215848605,0.045463,3319.7,3319.1,6.75]
[1642215848805,0.045463,3319.8,3319.2,2.52790712]
[1642215849006,0.00170527,3319.4,3319.1,6.75]
[1642215849405,0.00113685,3319.3,3319.1,6.75]
[1642215849847,0.045463,3319.7,3319.1,8.28430992]
[1642215849848,0.00284212,3319.6,3319.1,8.28430992]
[1642215850047,0.00284212,3319.6,3319.2,1.1986]
[1642215850251,0.00227369,3319.5,3319.2,1.1986]
[1642215850647,0.045463,3319.7,3319.5,1.12093901]
[1642215851048,0.00284212,3319.6,3319.5,1.12093901]
[1642215851249,0.00284212,3319.6,3319.5,1.22680223]
[1642215852851,0.00284212,3319.6,3319.5,3.62680223]
[1642215853049,0.00284212,3319.6,3319.5,5.16549119]
[1642215853708,0.00284212,3319.6,3319.5,2.76549119]
[1642215854910,0.00284212,3319.6,3319.5,1.22680223]
[1642215856508,0.04830512,3319.6,3319.5,1.22680223]
[1642215857112,0.00284212,3319.6,3319.5,1.22680223]
[1642215857747,0.04830512,3319.6,3319.5,1.22680223]
[1642215859148,0.00284212,3319.6,3319.5,1.22680223]
[1642215859349,0.00284212,3319.6,3319.5,3.80378043]
[1642215859753,2.71373248,3320.4,3319.6,2.45]
[1642215860048,0.00397896,3320.3,3320.0,1.45609927]
[1642215860447,3.14573248,3320.4,3320.0,1.45609927]
[1642215860448,0.00341054,3320.2,3320.0,1.45609927]
[1642215860847,0.00284212,3320.1,3320.0,1.45609927]
[1642215862301,0.00284212,3320.1,3320.0,2.57687104]
[1642215862900,0.00284212,3320.1,3319.7,2.57687104]
[1642215863300,0.00227369,3320.0,3319.7,2.57687104]
[1642215863701,0.00170527,3319.9,3319.7,2.57687104]
[1642215864100,0.00113685,3319.8,3319.7,2.57687104]
[1642215864302,0.00113685,3319.8,3319.7,3.97117544]
[1642215883359,0.38313685,3320.4,3319.8,5.15]
[1642215883611,4.34133422,3320.5,3319.8,5.15]
[1642215883612,4.04133422,3320.5,3319.8,5.15]
[1642215883814,0.00284211,3320.3,3319.8,5.15]
[1642215884206,0.00227369,3320.2,3319.7,3.97117544]
[1642215884607,0.00170527,3320.1,3319.7,3.97117544]
[1642215885009,0.00113684,3320.0,3319.7,3.97117544]
[1642215885408,0.00341054,3320.4,3319.7,3.97117544]
[1642215886007,0.00341054,3320.4,3319.8,2.57687104]
[1642215886206,0.43541054,3320.4,3319.8,2.57687104]
[1642215886407,0.43541054,3320.4,3319.9,1.3487286]
[1642215888152,0.43541054,3320.4,3320.0,2.57687104]
[1642215888553,0.75326,3320.2,3320.0,2.57687104]
[1642215888950,0.00170527,3320.1,3320.0,2.57687104]
[1642215890252,0.00170527,3320.1,3319.8,2.57687104]
[1642215890656,0.00113684,3320.0,3319.8,2.57687104]
[1642215890853,0.00113684,3320.0,3319.7,1.3943044]
[1642215891100,0.00170527,3320.1,3319.7,1.3943044]
[1642215891502,0.00113684,3320.0,3319.7,1.3943044]
[1642215891899,0.00170527,3320.1,3319.7,1.3943044]
[1642215892300,0.00113684,3320.0,3319.7,1.3943044]
[1642215892699,0.00170527,3320.1,3319.7,1.3943044]
[1642215893099,0.00113684,3320.0,3319.7,1.3943044]
[1642215893600,0.00170527,3320.1,3319.7,1.3943044]
[1642215894000,0.00113684,3320.0,3319.7,1.3943044]
[1642215894500,0.75326,3320.2,3319.7,1.3943044]
[1642215894501,0.00170527,3320.1,3319.7,1.3943044]
[1642215894951,0.00113684,3320.0,3319.7,1.3943044]
[1642215895351,0.75326,3320.2,3319.7,1.3943044]
[1642215895352,0.00170527,3320.1,3319.7,1.3943044]
[1642215895752,0.75326,3320.2,3319.7,1.3943044]
[1642215895753,0.00113684,3320.0,3319.7,1.3943044]
[1642215896151,0.00170527,3320.1,3319.7,1.3943044]
[1642215896451,0.00113684,3320.0,3319.7,1.3943044]
[1642215896853,0.00170527,3320.1,3319.7,1.3943044]
[1642215897252,0.00113684,3320.0,3319.7,1.3943044]
[1642215897652,0.00170527,3320.1,3319.7,1.3943044]
[1642215898053,0.00113684,3320.0,3319.7,1.3943044]
[1642215904858,0.00113684,3320.0,3319.6,1.1752]
[1642215906011,0.00113684,3320.0,3319.6,2.74000335]
[1642215906309,0.00113684,3320.0,3319.7,2.57678532]
[1642215909753,0.00113684,3320.0,3319.9,4.09055872]
[1642215909953,0.00113684,3320.0,3319.9,1.24055872]
[1642215911752,0.00113684,3320.0,3319.9,3.65833785]
[1642215911953,0.00113684,3320.0,3319.9,6.23512317]
[1642215912156,0.00113684,3320.0,3319.9,6.2358659]
[1642215912954,0.00113684,3320.0,3319.9,6.2813289]
[1642215920455,0.00113684,3320.0,3319.9,6.37907238]
[1642215922204,0.00113684,3320.0,3319.9,3.86280704]
[1642215922405,0.00113684,3320.0,3319.9,6.28689144]
[1642215922605,0.00113684,3320.0,3319.9,2.57678532]
[1642215923605,0.00113684,3320.0,3319.7,2.57678532]
[1642215927861,0.00113684,3320.0,3319.7,5.07524834]
[1642215928061,0.00113684,3320.0,3319.8,2.43128082]
[1642215929708,0.00113684,3320.0,3319.9,2.57678532]
[1642215931207,0.00113684,3320.0,3319.7,5.02294653]
[1642215931506,0.00113684,3320.0,3319.7,5.0020107]
[1642215931906,0.00113684,3320.0,3319.8,2.62224832]
[1642215932756,0.00113684,3320.0,3319.9,2.57678532]
[1642215934259,0.00113684,3320.0,3319.9,5.11522464]
[1642215934459,0.00113684,3320.0,3319.9,5.01615763]
[1642215934759,0.00113684,3320.0,3319.9,5.01851519]
[1642215934961,0.00113684,3320.0,3319.9,2.57678532]
[1642215936011,0.00113684,3320.0,3319.9,5.03840673]
[1642215936298,0.00113684,3320.0,3319.9,2.57678532]
[1642215936698,0.00113684,3320.0,3319.8,0.045463]
[1642215938199,0.00113684,3320.0,3319.6,1.1752]
[1642215939873,0.00113684,3320.0,3319.7,2.46094541]
[1642215940069,0.432,3320.5,3319.6,1.1752]
[1642215940469,0.00341054,3320.4,3319.6,1.1752]
[1642215940678,0.43541054,3320.4,3319.6,1.1752]
[1642215940870,0.00284211,3320.3,3319.6,1.1752]
[1642215941271,0.00227369,3320.2,3319.6,1.1752]
[1642215941671,0.432,3320.4,3319.6,1.1752]
[1642215941672,0.00170527,3320.1,3319.6,3.68552549]
[1642215942073,0.00113684,3320.0,3319.6,3.68552549]
[1642215942573,0.432,3320.4,3319.6,3.68552549]
[1642215942574,0.00284211,3320.3,3319.6,3.68552549]
[1642215942971,0.432,3320.4,3319.6,3.68552549]
[1642215942972,0.00227369,3320.2,3319.6,3.68552549]
[1642215943513,0.00170527,3320.1,3319.6,1.1752]
[1642215943904,0.00113684,3320.0,3319.6,1.1752]
[1642215944104,0.00113684,3320.0,3319.7,2.57653259]
[1642215944305,0.00284211,3320.3,3319.7,2.57653259]
[1642215944706,0.00227369,3320.2,3319.7,2.57653259]
[1642215945105,0.00170527,3320.1,3319.7,2.57653259]
[1642215945507,0.00113684,3320.0,3319.7,2.57653259]
[1642215945906,0.432,3320.4,3319.7,2.57653259]
[1642215945907,0.00284211,3320.3,3319.7,2.57653259]
[1642215946407,0.00227369,3320.2,3319.7,2.57653259]
[1642215946807,0.00170527,3320.1,3319.8,0.045463]
[1642215947008,0.00170527,3320.1,3320.0,6.745463]
[1642215947264,0.432,3320.8,3320.0,9.50671643]
[1642215947566,0.00511581,3320.7,3320.0,2.80671643]
[1642215948073,0.432,3320.8,3320.0,2.80671643]
[1642215948074,0.00454738,3320.6,3320.0,2.80671643]
[1642215948264,0.00454738,3320.6,3320.0,0.045463]
[1642215948561,0.00397896,3320.5,3320.0,0.045463]
[1642215948961,0.00341054,3320.4,3320.0,0.045463]
[1642215949362,0.00284211,3320.3,3320.0,0.045463]
[1642215949761,0.00227369,3320.2,3320.0,0.045463]
[1642215950162,0.00170527,3320.1,3320.0,0.045463]
[1642215950764,0.00170527,3320.1,3320.0,3.995463]
[1642215951009,0.00170527,3320.1,3320.0,6.70722138]
[1642215951202,0.00170527,3320.1,3320.0,7.70722138]
[1642215952603,0.00170527,3320.1,3320.0,9.08283239]
[1642215953606,5.27e-06,3320.1,3320.0,11.83283239]
[1642215953810,1.50811365,3321.1,3320.0,11.06941069]
[1642215954006,1.50811365,3321.1,3320.8,0.045463]
[1642215954208,1.6663323,3321.6,3320.8,0.045463]
[1642215954407,1.6663323,3321.6,3321.5,0.045463]
[1642215956157,1.6663323,3321.6,3321.3,0.045463]
[1642215956359,1.6663323,3321.6,3321.0,1.2281]
[1642215956360,1.5663323,3321.6,3321.1,0.045463]
[1642215956558,1.5663323,3321.6,3321.5,2.57653259]
[1642215956954,1.57485865,3321.6,3321.5,2.57653259]
[1642215957658,1.57485865,3321.6,3321.2,2.57653259]
[1642215958055,0.00795792,3321.5,3321.2,2.57653259]
[1642215958523,0.0073895,3321.4,3321.3,1.0]
[1642215958706,0.0073895,3321.4,3321.3,4.4]
[1642215959306,0.0073895,3321.4,3321.3,6.97653259]
[1642215960208,0.0073895,3321.4,3321.3,3.57653259]
[1642215960409,0.0073895,3321.4,3321.3,2.57653259]
[1642215960807,0.0073895,3321.4,3321.2,2.57653259]
[1642215961110,0.00682108,3321.3,3321.2,2.57653259]
[1642215961308,0.00682108,3321.3,3321.1,0.045463]
[1642215961529,0.00682108,3321.3,3321.1,1.045463]
[1642215961707,0.00625265,3321.2,3321.1,1.045463]
[1642215961907,0.00625265,3321.2,3321.1,3.54328449]
[1642215962357,0.00625265,3321.2,3321.1,1.045463]
[1642215962562,0.00625265,3321.2,3321.1,0.045463]
[1642215963160,0.00625265,3321.2,3321.0,6.514563]
[1642215963358,0.00625265,3321.2,3321.0,6.4691]
[1642215963559,0.00568423,3321.1,3321.0,6.4691]
[1642215964360,0.00568423,3321.1,3321.0,6.514563]
[1642215975007,0.00568423,3321.1,3321.0,6.4691]
[1642215975208,0.00568423,3321.1,3321.0,5.241]
[1642215976009,0.00568423,3321.1,3320.9,4.2328]
[1642215976410,0.00511581,3321.0,3320.9,4.2328]
[1642215976914,0.00511581,3321.0,3320.9,4.278263]
[1642215977363,0.00511581,3321.0,3320.9,4.2328]
[1642215981015,0.00511581,3321.0,3320.9,5.66045366]
[1642215981307,0.00511581,3321.0,3320.9,8.24537142]
[1642215981506,0.00511581,3321.0,3320.9,5.66045366]
[1642215981909,0.00511581,3321.0,3320.9,8.24317163]
[1642215982111,0.00511581,3321.0,3320.9,5.66045366]
[1642215983111,0.00511581,3321.0,3320.9,4.2328]
[1642215984313,0.00511581,3321.0,3320.9,6.8239328]
[1642215984513,0.00511581,3321.0,3320.9,4.2328]
[1642215987863,0.00511581,3321.0,3320.9,6.8083952]
[1642215990912,0.00511581,3321.0,3320.9,9.8083952]
[1642215991614,1.5663323,3321.6,3321.0,6.7]
[1642215991812,1.5663323,3321.6,3321.2,0.045463]
[1642215992012,0.00284211,3321.5,3321.3,0.045463]
[1642215992458,0.00227369,3321.4,3321.3,0.045463]
[1642215993259,0.00227369,3321.4,3321.3,8.4210582]
[1642215993659,0.00227369,3321.4,3321.3,9.63920477]
[1642215995059,0.00227369,3321.4,3321.3,3.83920477]
[1642215995263,0.00227369,3321.4,3321.3,2.6210582]
[1642215996207,0.00227369,3321.4,3321.3,2.5755952]
[1642216001961,0.00227369,3321.4,3321.3,3.94581764]
[1642216002570,1.0,3322.3,3321.4,6.7022]
[1642216002865,0.03561105,3323.5,3322.2,0.05055077]
[1642216002866,1.0,3323.5,3322.2,0.05055077]
[1642216003167,1.0,3323.5,3322.6,0.045463]
[1642216003364,1.0,3323.5,3323.0,0.045463]
[1642216003365,0.75,3323.5,3323.0,0.045463]
[1642216006415,0.75,3323.5,3322.9,1.16700968]
[1642216008061,0.75,3323.5,3323.0,2.57458195]
[1642216009566,2.8568116,3324.0,3323.0,2.57458195]
[1642216009766,3.1568116,3324.0,3323.0,2.57458195]
[1642216009967,0.01421059,3323.9,3323.0,2.62004495]
[1642216010367,0.01364216,3323.8,3323.0,2.62004495]
[1642216010869,0.01307374,3323.7,3323.0,5.62004495]
[1642216011115,0.01307374,3323.7,3323.1,2.57458195]
[1642216011311,0.01250532,3323.6,3323.1,2.57458195]
[1642216011710,0.01193689,3323.5,3323.1,2.57458195]
[1642216012110,0.01136847,3323.4,3323.1,2.57458195]
[1642216012513,0.01080005,3323.3,3323.1,2.57458195]
[1642216012914,0.01023162,3323.2,3323.1,2.57458195]
[1642216013314,0.01364216,3323.2,3323.1,2.57458195]
[1642216020923,0.44564216,3323.2,3323.1,2.57458195]